bitfinex/quotes_BTCUSD_20251012
["timestamp","ask_amount","ask_price","bid_price","bid_amount"]
[1760304494740,2.13735606,114990.0,114980.0,0.00811678]
[1760304494946,2.16443579,114990.0,114980.0,0.00811678]
[1760304495622,1.81947389,114990.0,114980.0,0.00811678]
[1760304495767,1.2172957,114990.0,114980.0,0.00611678]
[1760304495976,2.12270416,114990.0,114980.0,0.00611678]
[1760304496637,2.10654463,114990.0,114980.0,0.00611678]
[1760304497038,2.11623463,114990.0,114980.0,0.00611678]
[1760304497270,2.11623463,114990.0,114980.0,0.00811678]
[1760304498079,2.11623463,114990.0,114980.0,0.00611678]
[1760304498487,1.93291828,114990.0,114980.0,0.07238678]
[1760304498670,0.75644829,114990.0,114980.0,0.12840678]
[1760304498883,0.77194829,114990.0,114980.0,0.07238678]
[1760304499087,0.93802013,114990.0,114980.0,0.07238678]
[1760304499311,1.11194829,114990.0,114980.0,0.07238678]
[1760304499736,0.93802013,114990.0,114980.0,0.24633007]
[1760304499937,0.38090301,114990.0,114980.0,0.30035007]
[1760304500148,0.92252013,114990.0,114980.0,0.30235007]
[1760304500376,0.92252013,114990.0,114980.0,0.30435007]
[1760304500377,0.04090301,114990.0,114980.0,0.30435007]
[1760304500808,0.00037884,114990.0,114980.0,0.30435007]
[1760304501575,0.00037884,114990.0,114980.0,0.84596719]
[1760304501889,0.00037884,114990.0,114980.0,0.84396719]
[1760304502244,0.00014819,115010.0,115000.0,0.17391304]
[1760304502450,0.00014819,115010.0,115000.0,0.20209304]
[1760304502655,0.00014819,115010.0,115000.0,0.23818304]
[1760304502784,0.00014819,115010.0,115000.0,0.29420304]
[1760304503723,0.00014819,115010.0,115000.0,0.83882016]
[1760304504091,0.11162075,115040.0,115030.0,0.17386768]
[1760304504290,0.08547246,115040.0,115030.0,0.20204768]
[1760304504611,0.01620539,115040.0,115030.0,0.29415768]
[1760304505261,0.34315595,115050.0,115040.0,0.17385257]
[1760304505478,0.34315595,115050.0,115040.0,0.33594257]
[1760304505479,0.3595067,115050.0,115040.0,0.33594257]
[1760304505691,0.00330494,115050.0,115040.0,0.33594257]
[1760304506114,0.00330494,115050.0,115040.0,0.3897416]
[1760304506972,0.00330494,115050.0,115040.0,0.3917416]
[1760304507192,0.00330494,115050.0,115040.0,0.3937416]
[1760304507626,0.00330494,115050.0,115040.0,0.33994257]
[1760304514567,1e-08,115050.0,115040.0,1.00124111]
[1760304514767,0.61088419,115100.0,115090.0,0.17377704]
[1760304514985,0.13037538,115100.0,115090.0,0.23804704]
[1760304515196,0.02688194,115100.0,115090.0,0.29406704]
[1760304515622,0.51379214,115080.0,115070.0,0.02818]
[1760304515899,0.91776119,115080.0,115070.0,0.06427]
[1760304516340,1.11769332,115080.0,115070.0,0.06427]
[1760304516551,1.10219332,115080.0,115070.0,0.06427]
[1760304516766,1.11769332,115080.0,115070.0,0.06427]
[1760304517198,0.51380724,115070.0,115060.0,0.02818]
[1760304517413,1.06675604,115070.0,115060.0,0.06994]
[1760304517624,1.08225604,115070.0,115060.0,0.04176]
[1760304517829,1.08225604,115070.0,115060.0,0.07785]
[1760304518260,0.54063892,115070.0,115060.0,0.10603]
[1760304518475,1.08225604,115070.0,115060.0,0.10603]
[1760304519235,1.08225604,115070.0,115060.0,0.10803]
[1760304520676,0.54063892,115070.0,115060.0,0.10803]
[1760304520827,1.08225604,115070.0,115060.0,0.10803]
[1760304521014,1.08225604,115070.0,115060.0,0.04376]
[1760304521015,1.09306167,115070.0,115060.0,0.04376]
[1760304521413,1.08337167,115070.0,115060.0,0.04376]
[1760304522039,1.08337167,115070.0,115060.0,0.04176]
[1760304522267,1.08337167,115070.0,115060.0,0.04276]
[1760304522697,1.08337167,115070.0,115060.0,0.07885]
[1760304524919,1.10951431,115070.0,115060.0,0.07885]
[1760304525127,1.08337167,115070.0,115060.0,0.07885]
[1760304525538,1.3004009,115070.0,115060.0,0.07885]
[1760304526172,1.3004009,115070.0,115060.0,0.04276]
[1760304526792,1.3004009,115070.0,115060.0,0.07872]
[1760304527201,1.3004009,115070.0,115060.0,0.04276]
[1760304527847,1.3004009,115070.0,115060.0,0.07872]
[1760304528248,1.3004009,115070.0,115060.0,0.04276]
[1760304528588,1.3004009,115070.0,115060.0,0.07854]
[1760304530142,1.29844527,115070.0,115060.0,0.07854]
[1760304530547,1.29844527,115070.0,115060.0,0.04276]
[1760304533121,1.30619527,115070.0,115060.0,0.04276]
[1760304533568,1.29844527,115070.0,115060.0,0.04276]
[1760304535438,1.32458791,115070.0,115060.0,0.04276]
[1760304536397,1.33233791,115070.0,115060.0,0.04276]
[1760304537434,1.33233791,115070.0,115060.0,0.001]
[1760304537642,1.35942546,115070.0,115060.0,0.001]
[1760304537851,2.30314291,115070.0,115060.0,0.001]
[1760304538490,0.51383746,115050.0,115040.0,0.04176]
[1760304538708,1.28457091,115050.0,115040.0,0.04176]
[1760304538903,1.29697091,115050.0,115040.0,0.04176]
[1760304539118,1.32311803,115050.0,115040.0,0.04176]
[1760304539537,1.33086803,115050.0,115040.0,0.04176]
[1760304540699,1.33086803,115050.0,115040.0,0.04276]
[1760304541312,1.32311803,115050.0,115040.0,0.04276]
[1760304541719,0.37823422,115050.0,115040.0,0.16088]
[1760304541920,0.94457091,115050.0,115040.0,0.16088]
[1760304542119,0.52592456,115050.0,115040.0,0.16088]
[1760304542327,1.28457091,115050.0,115040.0,0.16088]
[1760304543030,1.11073345,115050.0,115040.0,0.16088]
[1760304543236,0.18246589,115090.0,115040.0,0.16088]
[1760304543237,0.78201948,115100.0,115090.0,0.17377704]
[1760304543436,0.78201948,115100.0,115050.0,0.17379214]
[1760304543437,3.00042536,115070.0,115060.0,0.0591719]
[1760304543642,3.00042536,115070.0,115060.0,0.26874404]
[1760304544012,3.00042536,115070.0,115060.0,0.32206404]
[1760304544180,3.00042536,115070.0,115060.0,0.47553413]
[1760304544625,3.00154099,115070.0,115060.0,0.47553413]
[1760304545074,3.00154099,115070.0,115060.0,0.47653413]
[1760304546075,3.00154099,115070.0,115060.0,0.47853413]
[1760304548104,3.00154099,115070.0,115060.0,1.23718048]
[1760304548570,3.00154099,115070.0,115060.0,0.47853413]
[1760304548738,3.00154099,115070.0,115060.0,0.47753413]
[1760304548961,3.00154099,115070.0,115060.0,0.47653413]
[1760304549385,3.00154099,115070.0,115060.0,0.47753413]
[1760304549888,3.00154099,115070.0,115060.0,0.47553413]
[1760304550109,3.00154099,115070.0,115060.0,0.47753413]
[1760304550310,3.00154099,115070.0,115060.0,0.47953413]
[1760304550711,2.51661662,115070.0,115060.0,0.47953413]
[1760304550905,2.37716121,115070.0,115060.0,0.47953413]
[1760304551106,2.18472912,115070.0,115060.0,0.47953413]
[1760304551537,1.30354099,115070.0,115060.0,1.63923989]
[1760304551752,1.12583646,115070.0,115060.0,1.63923989]
[1760304551953,1.0997434,115070.0,115060.0,1.63923989]
[1760304552130,0.76705205,115070.0,115060.0,1.63923989]
[1760304552279,0.57592391,115070.0,115060.0,1.63923989]
[1760304552485,0.24240909,115070.0,115060.0,1.63723989]
[1760304552691,0.17026786,115070.0,115060.0,1.63523989]
[1760304552891,0.1451748,115070.0,115060.0,1.63523989]
[1760304553085,0.06946707,115120.0,115100.0,0.0301519]
[1760304553293,0.06961599,115120.0,115110.0,0.45516558]
[1760304553543,0.00034892,115120.0,115110.0,0.45330827]
[1760304554029,0.00034892,115120.0,115110.0,0.45308578]
[1760304554869,0.00034892,115120.0,115110.0,0.45408578]
[1760304555081,0.00034892,115120.0,115110.0,1.21251028]
[1760304555487,0.00034892,115120.0,115110.0,1.21351028]
[1760304555725,0.02631812,115190.0,115180.0,0.17364125]
[1760304555989,0.02631812,115190.0,115170.0,0.20267633]
[1760304555990,0.06926707,115180.0,115170.0,0.20267633]
[1760304556161,0.0003489,115190.0,115170.0,0.42306585]
[1760304556372,0.0003489,115190.0,115180.0,0.25598125]
[1760304556792,0.0003489,115190.0,115180.0,0.29176125]
[1760304559054,0.0003489,115190.0,115180.0,0.29276125]
[1760304559468,0.00703515,115190.0,115180.0,0.29276125]
[1760304560742,1.1056815,115190.0,115180.0,0.29276125]
[1760304560957,0.34703515,115190.0,115180.0,0.29276125]
[1760304567339,0.34703515,115190.0,115180.0,0.29176125]
[1760304567780,0.34703515,115190.0,115180.0,0.29276125]
[1760304568209,0.34703515,115190.0,115180.0,0.29176125]
[1760304568592,0.34703515,115190.0,115180.0,0.29276125]
[1760304569209,0.34703515,115190.0,115180.0,0.32367674]
[1760304569363,0.34703515,115190.0,115180.0,0.29276125]
[1760304570056,0.34703515,115190.0,115180.0,0.28875125]
[1760304571400,0.34703515,115190.0,115180.0,0.31966674]
[1760304573283,0.52066133,115190.0,115180.0,0.31966674]
[1760304573463,1.29774768,115190.0,115180.0,0.09270549]
[1760304573878,0.52066133,115190.0,115180.0,0.15372549]
[1760304574089,0.34703515,115190.0,115180.0,0.32736674]
[1760304574294,0.34703515,115190.0,115180.0,0.32636674]
[1760304574723,0.34703515,115190.0,115180.0,0.32736674]
[1760304574942,1.1056815,115190.0,115180.0,0.32736674]
[1760304575139,1.27930768,115190.0,115180.0,0.32736674]
[1760304576330,1.27930768,115190.0,115180.0,0.37373998]
[1760304576783,1.27930768,115190.0,115180.0,0.12281]
[1760304577356,1.27930768,115190.0,115180.0,0.16918324]
[1760304577955,1.27930768,115190.0,115180.0,0.34282449]
[1760304578357,1.27930768,115190.0,115180.0,0.16918324]
[1760304578810,0.52066133,115190.0,115180.0,0.34282449]
[1760304579036,1.27930768,115190.0,115180.0,0.38454449]
[1760304579191,1.27930768,115190.0,115180.0,0.21090324]
[1760304579808,0.52066133,115190.0,115180.0,0.21090324]
[1760304580018,0.34703515,115190.0,115180.0,0.38454449]
[1760304580232,1.27930768,115190.0,115180.0,0.38454449]
[1760304580430,1.27930768,115190.0,115180.0,0.33817125]
[1760304580674,1.1056815,115190.0,115180.0,0.33817125]
[1760304580921,1.27930768,115190.0,115180.0,0.33817125]
[1760304581470,1.27930768,115190.0,115180.0,0.40068257]
[1760304582583,0.34703515,115190.0,115180.0,0.40068257]
[1760304582777,1.27930768,115190.0,115180.0,0.40068257]
[1760304583410,1.28742112,115190.0,115180.0,0.41632539]
[1760304583752,1.28742112,115190.0,115180.0,0.33817125]
[1760304584239,1.11379494,115190.0,115180.0,0.33817125]
[1760304584464,1.28742112,115190.0,115180.0,0.41632539]
[1760304584677,1.11379494,115190.0,115180.0,0.41632539]
[1760304585794,0.95757879,115190.0,115180.0,0.41632539]
[1760304585917,1.13120497,115190.0,115180.0,0.41632539]
[1760304586124,1.08939497,115190.0,115180.0,0.41632539]
[1760304586330,0.91576879,115190.0,115180.0,0.41632539]
[1760304586789,0.91576879,115190.0,115180.0,0.33817125]
[1760304587015,0.89546879,115190.0,115180.0,0.33817125]
[1760304587799,1.06909497,115190.0,115180.0,0.33817125]
[1760304588629,1.06909497,115190.0,115180.0,0.16453]
[1760304588839,1.06909497,115190.0,115180.0,0.40072881]
[1760304589054,1.06909497,115190.0,115180.0,0.33817125]
[1760304589274,1.06909497,115190.0,115180.0,0.16453]
[1760304589484,1.06909497,115190.0,115180.0,0.33817125]
[1760304589902,1.06909497,115190.0,115180.0,0.16453]
[1760304590104,1.06909497,115190.0,115180.0,0.33817125]
[1760304591794,0.52877477,115190.0,115180.0,0.33817125]
[1760304592001,0.35514859,115190.0,115180.0,0.33817125]
[1760304592212,0.92574823,115190.0,115180.0,0.33817125]
[1760304593239,0.35514859,115190.0,115180.0,0.33817125]
[1760304593455,0.92574823,115190.0,115180.0,0.33817125]
[1760304594339,0.92574823,115190.0,115180.0,0.33717125]
[1760304594548,0.91763479,115190.0,115180.0,0.33717125]
[1760304594759,0.91763479,115190.0,115180.0,0.33817125]
[1760304596768,0.91602404,115190.0,115180.0,0.33817125]
[1760304596983,0.91602404,115190.0,115180.0,0.33793373]
[1760304597337,0.91631789,115190.0,115180.0,0.33793373]
[1760304597553,0.91631789,115190.0,115180.0,0.33769384]
[1760304597790,0.91631789,115190.0,115180.0,0.33745227]
[1760304598359,0.91631789,115190.0,115180.0,0.3372119]
[1760304598487,0.98068789,115190.0,115180.0,0.27595146]
[1760304598691,0.98068789,115190.0,115180.0,0.27495146]
[1760304598902,0.98068789,115190.0,115180.0,0.27471025]
[1760304599110,0.98068789,115190.0,115180.0,0.27546874]
[1760304599652,0.98068789,115190.0,115180.0,0.27522589]
[1760304599870,0.98068789,115190.0,115180.0,0.27498186]
[1760304600070,0.98068789,115190.0,115180.0,0.27473613]
[1760304600295,0.98068789,115190.0,115180.0,0.21636125]
[1760304600501,1.21646407,115190.0,115180.0,0.04147405]
[1760304600801,1.21646407,115190.0,115180.0,0.21586779]
[1760304600998,1.15431407,115190.0,115180.0,0.25556168]
[1760304601344,1.15431407,115190.0,115180.0,0.25531389]
[1760304601551,1.15431407,115190.0,115180.0,0.0814224]
[1760304601769,1.11144407,115190.0,115180.0,0.1758224]
[1760304601971,1.11144407,115190.0,115180.0,0.3492182]
[1760304602375,1.11144407,115190.0,115180.0,0.34897156]
[1760304602612,1.11144407,115190.0,115180.0,0.3487251]
[1760304602772,1.15431407,115190.0,115180.0,0.11070385]
[1760304602975,1.15431407,115190.0,115180.0,0.1748348]
[1760304603399,1.15431407,115190.0,115180.0,0.11020743]
[1760304603625,1.15431407,115190.0,115180.0,0.10995932]
[1760304604012,0.54084443,115190.0,115180.0,0.17409085]
[1760304604209,1.11144407,115190.0,115180.0,0.17409085]
[1760304604726,1.15431407,115190.0,115180.0,0.3477321]
[1760304605311,0.51934443,115190.0,115180.0,0.34748172]
[1760304605722,1.13281407,115190.0,115180.0,0.34723072]
[1760304605925,1.13281407,115190.0,115180.0,0.1733363]
[1760304606420,1.13281407,115190.0,115180.0,0.17308095]
[1760304606630,0.51934443,115190.0,115180.0,0.34646749]
[1760304606839,1.1061907,115190.0,115180.0,0.34621057]
[1760304607282,1.1061907,115190.0,115180.0,0.34595421]
[1760304607459,1.08994407,115190.0,115180.0,0.34569686]
[1760304607868,1.08994407,115190.0,115180.0,0.34543887]
[1760304608068,1.08994407,115190.0,115180.0,0.34518002]
[1760304608446,1.08994407,115190.0,115180.0,0.34492183]
[1760304608674,0.34571825,115190.0,115180.0,0.43445135]
[1760304608896,0.91631789,115190.0,115180.0,0.43445135]
[1760304609493,0.91631789,115190.0,115180.0,0.43419372]
[1760304609965,0.34571825,115190.0,115180.0,0.43393567]
[1760304610184,0.91631789,115190.0,115180.0,0.43393567]
[1760304611016,0.34571825,115190.0,115180.0,0.43393567]
[1760304611435,0.34571825,115190.0,115180.0,0.46408757]
[1760304611731,0.34571825,115190.0,115180.0,0.1063849]
[1760304611732,1.15553407,115190.0,115180.0,0.1063849]
[1760304611971,1.24425341,115190.0,115180.0,0.10612341]
[1760304612181,1.15553407,115190.0,115180.0,0.10585805]
[1760304612381,1.21768407,115190.0,115180.0,0.06591805]
[1760304612504,1.21768407,115190.0,115180.0,0.03563129]
[1760304612713,1.21768407,115190.0,115180.0,0.03436313]
[1760304612914,1.15553407,115190.0,115180.0,0.03436313]
[1760304613164,1.30640341,115190.0,115180.0,0.03409524]
[1760304613361,1.15553407,115190.0,115180.0,0.07376563]
[1760304613560,0.58493443,115190.0,115180.0,0.07376563]
[1760304613767,1.15553407,115190.0,115180.0,0.0735001]
[1760304613961,1.15553407,115190.0,115180.0,0.07323315]
[1760304614378,1.15553407,115190.0,115180.0,0.07296462]
[1760304614585,1.831604,115190.0,115180.0,0.03275476]
[1760304614782,0.17367141,115160.0,115150.0,0.04172]
[1760304614990,1.33572069,115160.0,115150.0,0.04144999]
[1760304615194,1.46715537,115160.0,115150.0,0.04144999]
[1760304615407,1.80715537,115160.0,115150.0,0.04144999]
[1760304615650,2.91771309,115160.0,115150.0,0.04117704]
[1760304615845,1.94690809,115160.0,115150.0,0.04090757]
[1760304616045,2.93394001,115160.0,115150.0,0.04090757]
[1760304616256,2.93394001,115160.0,115150.0,0.04162413]
[1760304616390,1.96313501,115160.0,115150.0,0.04134382]
[1760304616641,2.93394001,115160.0,115150.0,0.04005992]
[1760304616840,1.96313501,115160.0,115150.0,0.04005992]
[1760304617049,2.93394001,115160.0,115150.0,0.03977737]
[1760304617513,2.93394001,115160.0,115150.0,0.03948982]
[1760304617684,2.87471857,115160.0,115150.0,0.0392015]
[1760304617843,1.90391357,115160.0,115150.0,0.0392015]
[1760304618051,2.87471857,115160.0,115150.0,0.03891582]
[1760304618247,2.85849165,115160.0,115150.0,0.03863272]
[1760304618739,2.85849165,115160.0,115150.0,0.03834754]
[1760304618944,2.85849165,115160.0,115150.0,0.03805945]
[1760304619443,2.85849165,115160.0,115150.0,0.03776918]
[1760304619751,2.85849165,115160.0,115150.0,0.03747964]
[1760304619881,1.88768665,115160.0,115150.0,0.03719282]
[1760304620082,2.85849165,115160.0,115150.0,0.03719282]
[1760304620442,2.85849165,115160.0,115150.0,0.03690067]
[1760304620648,2.85849165,115160.0,115150.0,0.03660843]
[1760304620847,2.85849165,115160.0,115150.0,0.03631527]
[1760304621208,2.85849165,115160.0,115150.0,0.03602023]
[1760304621403,2.85849165,115160.0,115150.0,0.03572311]
[1760304621838,2.85849165,115160.0,115150.0,0.03542443]
[1760304622031,2.76977231,115160.0,115150.0,0.0351272]
[1760304622446,2.76977231,115160.0,115150.0,0.03483379]
[1760304622678,2.76977231,115160.0,115150.0,0.03454116]
[1760304622897,1.79896731,115160.0,115150.0,0.03424743]
[1760304623298,2.76977231,115160.0,115150.0,0.03395199]
[1760304623509,2.85849165,115160.0,115150.0,0.03365533]
[1760304623925,2.85849165,115160.0,115150.0,0.03335722]
[1760304624143,2.85849165,115160.0,115150.0,0.0330578]
[1760304624340,1.88768665,115160.0,115150.0,0.0330578]
[1760304624547,1.88768665,115160.0,115150.0,0.03275757]
[1760304624750,2.85849165,115160.0,115150.0,0.0324565]
[1760304625166,2.85849165,115160.0,115150.0,0.03215409]
[1760304625573,2.86224563,115160.0,115150.0,0.03185077]
[1760304625982,2.86224563,115160.0,115150.0,0.03154629]
[1760304626213,1.8665256,115160.0,115150.0,0.03125056]
[1760304626401,2.8373306,115160.0,115150.0,0.0309537]
[1760304626814,1.8665256,115160.0,115150.0,0.03065968]
[1760304627190,2.74861126,115160.0,115150.0,0.03036415]
[1760304627392,2.74861126,115160.0,115150.0,0.03007244]
[1760304627800,2.74861126,115160.0,115150.0,0.02977608]
[1760304628218,2.74861126,115160.0,115150.0,0.029481]
[1760304628362,2.74861126,115160.0,115150.0,0.0291819]
[1760304628561,2.8373306,115160.0,115150.0,0.0291819]
[1760304628772,2.85350639,115160.0,115150.0,0.02888463]
[1760304629003,2.85350639,115160.0,115150.0,0.02858562]
[1760304629394,2.85350639,115160.0,115150.0,0.02828458]
[1760304629598,2.85350639,115160.0,115150.0,0.02798382]
[1760304629985,2.85350639,115160.0,115150.0,0.02768099]
[1760304630206,2.85350639,115160.0,115150.0,0.02738089]
[1760304630410,2.87838129,115160.0,115150.0,0.02738089]
[1760304630702,2.87838129,115160.0,115150.0,0.02707378]
[1760304630902,2.87838129,115160.0,115150.0,0.02676551]
[1760304631323,2.87838129,115160.0,115150.0,0.02645442]
[1760304631524,1.90757629,115160.0,115150.0,0.02614948]
[1760304631746,2.87838129,115160.0,115150.0,0.02614948]
[1760304631945,1.90757629,115160.0,115150.0,0.02584112]
[1760304632135,2.87838129,115160.0,115150.0,0.02553371]
[1760304632566,2.87838129,115160.0,115150.0,0.02522663]
[1760304632764,2.97838128,115160.0,115150.0,0.02490943]
[1760304633237,2.97838128,115160.0,115150.0,0.02459828]
[1760304633238,2.87838129,115160.0,115150.0,0.02459828]
[1760304633449,2.87838129,115160.0,115150.0,0.02428552]
[1760304633636,2.97838128,115160.0,115150.0,0.02428552]
[1760304633832,2.97838128,115160.0,115150.0,0.02397027]
[1760304634059,1.89640344,115160.0,115150.0,0.02365133]
[1760304634262,2.97838128,115160.0,115150.0,0.02365133]
[1760304634443,2.97838128,115160.0,115150.0,0.02333731]
[1760304634653,2.97838128,115160.0,115150.0,1e-08]
[1760304634862,0.34868583,115130.0,115110.0,0.04172]
[1760304635074,0.64169175,115120.0,115110.0,0.04172]
[1760304635278,0.52243419,115110.0,115100.0,0.04172]
[1760304635521,1.19138311,115110.0,115100.0,0.04172]
[1760304635666,1.1917521,115110.0,115100.0,0.04172]
[1760304635868,0.65076318,115110.0,115100.0,0.04172]
[1760304636073,1.1917521,115110.0,115100.0,0.0418689]
[1760304636907,1.1304621,115110.0,115100.0,0.0418689]
[1760304637160,1.1304621,115110.0,115100.0,0.0831889]
[1760304637579,1.15658994,115110.0,115100.0,0.0428689]
[1760304637710,1.81976332,115110.0,115100.0,0.0428689]
[1760304637905,0.61560102,115110.0,115100.0,0.0428689]
[1760304638108,1.7676002,115110.0,115100.0,0.0841889]
[1760304638485,1.7676002,115110.0,115100.0,0.04256208]
[1760304638685,1.8288902,115110.0,115100.0,0.04256208]
[1760304638802,1.91760954,115110.0,115100.0,0.0422565]
[1760304639005,1.91760954,115110.0,115100.0,0.04194709]
[1760304639431,1.91760954,115110.0,115100.0,0.04164084]
[1760304640060,0.77473724,115110.0,115100.0,0.04164084]
[1760304640269,1.9337498,115110.0,115100.0,0.04133379]
[1760304640682,1.93472432,115110.0,115100.0,0.04133379]
[1760304640926,1.93472432,115110.0,115100.0,0.04002547]
[1760304641275,2.50616047,115110.0,115100.0,0.04071421]
[1760304641749,2.50616047,115110.0,115100.0,0.0394047]
[1760304641952,2.50616047,115110.0,115100.0,0.0390943]
[1760304642168,1.93472432,115110.0,115100.0,0.0400943]
[1760304642392,3.47696547,115110.0,115100.0,0.03978251]
[1760304642617,3.47696547,115110.0,115100.0,0.03947077]
[1760304642825,3.47696547,115110.0,115100.0,0.03915906]
[1760304643054,2.90552932,115110.0,115100.0,0.03915906]
[1760304643277,0.52069849,115110.0,115100.0,0.03884436]
[1760304643491,1.1442093,115110.0,115100.0,0.37775621]
[1760304643702,0.95291315,115110.0,115100.0,0.37744312]
[1760304643915,0.57277315,115110.0,115100.0,0.37644312]
[1760304644092,0.91277315,115110.0,115100.0,0.37612969]
[1760304644351,0.63890315,115110.0,115100.0,0.31390301]
[1760304644682,0.93876315,115110.0,115100.0,0.31259014]
[1760304644885,0.91277315,115110.0,115100.0,0.37218145]
[1760304645089,0.91277315,115110.0,115100.0,0.37318145]
[1760304645312,0.91277315,115110.0,115100.0,0.3728635]
[1760304645720,0.84916749,115110.0,115100.0,0.37254219]
[1760304646014,0.84916749,115110.0,115100.0,0.37222185]
[1760304646231,0.84916749,115110.0,115100.0,0.37190098]
[1760304649641,0.341337,115110.0,115100.0,0.37190098]
[1760304650341,0.93275999,115110.0,115100.0,0.31199098]
[1760304650553,0.4249295,115110.0,115100.0,0.31199098]
[1760304650767,0.4249295,115110.0,115100.0,0.37027098]
[1760304650768,0.93275999,115110.0,115100.0,0.37027098]
[1760304650980,0.97642532,115110.0,115100.0,0.31199098]
[1760304651803,0.96020282,115110.0,115100.0,0.31199098]
[1760304652429,0.91653749,115110.0,115100.0,0.37027098]
[1760304652971,0.91653749,115110.0,115100.0,0.31199098]
[1760304653371,0.92572767,115110.0,115100.0,0.31199098]
[1760304653546,0.85835767,115110.0,115100.0,0.37027098]
[1760304653749,0.341337,115110.0,115100.0,0.37027098]
[1760304654174,0.84916749,115110.0,115100.0,0.37027098]
[1760304654355,0.341337,115110.0,115100.0,0.37027098]
[1760304658078,0.84916749,115110.0,115100.0,0.37027098]
[1760304658297,0.91653749,115110.0,115100.0,0.31199098]
[1760304658503,0.92582309,115110.0,115100.0,0.31199098]
[1760304660140,1.01454243,115110.0,115100.0,0.31075939]
[1760304660356,0.92582309,115110.0,115100.0,0.31075939]
[1760304660772,0.4179926,115110.0,115100.0,0.31075939]
[1760304660979,0.4179926,115110.0,115100.0,0.36903939]
[1760304660980,0.92582309,115110.0,115100.0,0.36903939]
[1760304661184,0.37522201,115110.0,115100.0,0.36903939]
[1760304661542,0.9245625,115110.0,115100.0,0.36868504]
[1760304661750,0.92500103,115110.0,115100.0,0.36868504]
[1760304661945,0.91571543,115110.0,115100.0,0.36868504]
[1760304662963,0.91571543,115110.0,115100.0,0.31040504]
[1760304663197,0.91571543,115110.0,115100.0,0.36868504]
[1760304663548,0.91571543,115110.0,115100.0,0.31040504]
[1760304663748,1.22113376,115110.0,115100.0,0.0349712]
[1760304663947,1.24721318,115110.0,115100.0,0.0349712]
[1760304664288,1.24721318,115110.0,115100.0,0.03460157]
[1760304664495,1.27334379,115110.0,115100.0,0.03423184]
[1760304664719,1.17355289,115110.0,115100.0,0.03423184]
[1760304664924,1.18977597,115110.0,115100.0,0.03386276]
[1760304665340,1.17355289,115110.0,115100.0,0.03386276]
[1760304665554,0.68194527,115110.0,115100.0,0.03349187]
[1760304665791,1.18977576,115110.0,115100.0,0.03349187]
[1760304666005,1.30457452,115110.0,115100.0,0.03349187]
[1760304666797,1.28835165,115110.0,115100.0,0.03349187]
[1760304667635,1.28835165,115110.0,115100.0,0.03311655]
[1760304667856,1.30457006,115110.0,115100.0,0.03311655]
[1760304668044,1.21585072,115110.0,115100.0,0.03311655]
[1760304668249,1.19963231,115110.0,115100.0,0.03311655]
[1760304668637,1.19963231,115110.0,115100.0,0.03273955]
[1760304669148,1.17355289,115110.0,115100.0,0.03273955]
[1760304669577,1.17355289,115110.0,115100.0,0.03236122]
[1760304670576,1.26227223,115110.0,115100.0,0.03236122]
[1760304670874,1.28835165,115110.0,115100.0,0.03236122]
[1760304671177,0.51377704,115090.0,115080.0,0.04676]
[1760304671320,1.04933753,115090.0,115080.0,0.04725683]
[1760304671523,1.14928311,115090.0,115080.0,0.04725683]
[1760304671945,0.66918434,115090.0,115080.0,0.22104897]
[1760304672155,1.17701483,115090.0,115080.0,0.22104897]
[1760304672368,1.17701483,115090.0,115080.0,0.22404897]
[1760304672844,1.14928311,115090.0,115080.0,0.05025683]
[1760304673245,1.74583294,115090.0,115080.0,0.05025683]
[1760304673489,0.68163773,115070.0,115060.0,0.04216]
[1760304673679,0.70842773,115070.0,115060.0,0.04230892]
[1760304673882,0.83562945,115070.0,115060.0,0.04230892]
[1760304674091,1.17608406,115070.0,115060.0,0.04230892]
[1760304674281,2.14688906,115070.0,115060.0,0.04230892]
[1760304674675,1.17608406,115070.0,115060.0,0.04230892]
[1760304674856,1.29094633,115070.0,115060.0,0.04230892]
[1760304675256,1.29094633,115070.0,115060.0,0.04430892]
[1760304675637,2.26175133,115070.0,115060.0,0.04230892]
[1760304676018,2.26175133,115070.0,115060.0,0.04630892]
[1760304676440,2.26175133,115070.0,115060.0,0.04430892]
[1760304676861,2.28661256,115070.0,115060.0,0.04630892]
[1760304677480,2.79444305,115070.0,115060.0,0.04430892]
[1760304677686,2.28661256,115070.0,115060.0,0.04430892]
[1760304677897,2.28661256,115070.0,115060.0,0.04530892]
[1760304678078,2.28661256,115070.0,115060.0,0.04230892]
[1760304678295,2.28661256,115070.0,115060.0,0.04330892]
[1760304678502,2.28661256,115070.0,115060.0,0.04530892]
[1760304678669,1.31580756,115070.0,115060.0,0.04430892]
[1760304679025,2.79444305,115070.0,115060.0,0.04293148]
[1760304679263,2.79444305,115070.0,115060.0,0.04455431]
[1760304679475,2.79444305,115070.0,115060.0,0.04416943]
[1760304679910,1.82363805,115070.0,115060.0,0.04416943]
[1760304680121,2.79444305,115070.0,115060.0,0.04416943]
[1760304681398,2.79444305,115070.0,115060.0,0.04216943]
[1760304681833,2.79444305,115070.0,115060.0,0.04316943]
[1760304682052,2.79444305,115070.0,115060.0,0.04416943]
[1760304682302,2.79444305,115070.0,115060.0,0.04724726]
[1760304682512,2.79444305,115070.0,115060.0,0.04524726]
[1760304682717,2.28661256,115070.0,115060.0,0.04724726]
[1760304683138,2.79444305,115070.0,115060.0,0.04724726]
[1760304683569,2.79444305,115070.0,115060.0,0.04624726]
[1760304683987,2.79444305,115070.0,115060.0,0.04724726]
[1760304685220,1.82363805,115070.0,115060.0,0.04724726]
[1760304685424,2.79444305,115070.0,115060.0,0.04724726]
[1760304685603,2.28661256,115070.0,115060.0,0.04724726]
[1760304686431,1.77878207,115070.0,115060.0,0.04724726]
[1760304686677,2.79444305,115070.0,115060.0,0.04724726]
[1760304686834,1.82363805,115070.0,115060.0,0.04724726]
[1760304687043,2.79444305,115070.0,115060.0,0.04724726]
[1760304687244,2.79444305,115070.0,115060.0,0.04524726]
[1760304687649,2.28661256,115070.0,115060.0,0.04724726]
[1760304687855,2.79444305,115070.0,115060.0,0.04724726]
[1760304688035,2.79444305,115070.0,115060.0,0.04924726]
[1760304688435,2.79444305,115070.0,115060.0,5.04924726]
[1760304688892,1.77878207,115070.0,115060.0,5.04924726]
[1760304689099,2.28661256,115070.0,115060.0,5.04924726]
[1760304689298,1.82363805,115070.0,115060.0,5.04924726]
[1760304689599,2.79444305,115070.0,115060.0,5.04924726]
[1760304690080,2.79444305,115070.0,115060.0,5.04424726]
[1760304690296,2.79444305,115070.0,115060.0,5.04624726]
[1760304690836,2.79444305,115070.0,115060.0,5.04724726]
[1760304691036,2.79444305,115070.0,115060.0,5.00622675]
[1760304691371,1.82363805,115070.0,115060.0,5.00622675]
[1760304691574,2.79444305,115070.0,115060.0,5.00622675]
[1760304692695,2.28661256,115070.0,115060.0,5.00622675]
[1760304693943,1.77878207,115070.0,115060.0,5.00622675]
[1760304694174,2.28661256,115070.0,115060.0,5.00622675]
[1760304694752,2.28661256,115070.0,115060.0,5.00422675]
[1760304695156,2.14530027,115070.0,115060.0,5.00722675]
[1760304695338,2.17375684,115070.0,115060.0,5.00722675]
[1760304695539,0.71998258,115070.0,115060.0,5.00722675]